bitfinex/quotes_BTCUSD_20250101
["timestamp","ask_amount","ask_price","bid_price","bid_amount"]
[1735700418218,0.1247853,94221.0,94220.0,0.20715692]
[1735700418768,8.53e-05,94226.0,94220.0,0.20415692]
[1735700419149,8.53e-05,94226.0,94220.0,0.20715692]
[1735700419534,8.53e-05,94226.0,94220.0,0.21415692]
[1735700419740,0.212258,94225.0,94220.0,0.23558975]
[1735700419939,0.212258,94225.0,94220.0,0.20715692]
[1735700420144,0.212258,94225.0,94220.0,0.21315692]
[1735700420363,0.212258,94225.0,94220.0,0.21015692]
[1735700420587,0.212258,94225.0,94220.0,0.20415692]
[1735700420788,0.212258,94225.0,94220.0,0.20715692]
[1735700420947,8.53e-05,94226.0,94220.0,0.22788975]
[1735700421152,8.53e-05,94226.0,94220.0,0.22488975]
[1735700421465,0.2123403,94226.0,94220.0,0.23288975]
[1735700421867,0.1247,94225.0,94220.0,0.23288975]
[1735700422075,0.0781,94224.0,94220.0,0.21015692]
[1735700422305,0.0781853,94221.0,94220.0,0.21215692]
[1735700422711,0.0781853,94221.0,94220.0,0.20615692]
[1735700422951,0.0781853,94221.0,94220.0,0.21215692]
[1735700423294,0.0781853,94221.0,94220.0,0.20615692]
[1735700423519,0.0781853,94221.0,94220.0,0.21215692]
[1735700423987,0.0781853,94221.0,94220.0,0.20615692]
[1735700424179,0.0781853,94221.0,94220.0,0.21415692]
[1735700424390,0.0781853,94221.0,94220.0,0.21215692]
[1735700424593,0.0781853,94221.0,94220.0,0.20415692]
[1735700424794,0.0781853,94221.0,94220.0,0.20715692]
[1735700425373,0.0781853,94221.0,94220.0,0.20415692]
[1735700425672,0.0781853,94221.0,94220.0,0.20715692]
[1735700425812,0.0781853,94221.0,94220.0,0.21515692]
[1735700426016,0.0781853,94221.0,94220.0,0.20715692]
[1735700426331,0.0781853,94221.0,94220.0,0.11515692]
[1735700426941,0.0781853,94221.0,94220.0,0.11215692]
[1735700427130,0.0781853,94221.0,94220.0,0.10415692]
[1735700427643,0.0781853,94221.0,94220.0,0.11515692]
[1735700428474,0.1276853,94221.0,94220.0,0.11515692]
[1735700442189,0.12615463,94221.0,94220.0,0.11515692]
[1735700442544,8.53e-05,94226.0,94220.0,0.21515692]
[1735700442743,8.53e-05,94226.0,94225.0,0.1]
[1735700442932,8.53e-05,94226.0,94225.0,0.41624332]
[1735700443129,8.53e-05,94226.0,94225.0,0.45898479]
[1735700444023,8.53e-05,94226.0,94225.0,0.41624332]
[1735700445069,8.53e-05,94226.0,94225.0,0.42124332]
[1735700445905,8.53e-05,94226.0,94225.0,0.43024332]
[1735700450580,8.53e-05,94226.0,94225.0,0.21798632]
[1735700451997,0.2777853,94226.0,94225.0,0.014]
[1735700452202,0.36924696,94226.0,94225.0,0.014]
[1735700452805,0.36924696,94226.0,94225.0,0.009]
[1735700453154,0.15,94223.0,94220.0,0.0001706]
[1735700453352,0.15,94221.0,94220.0,0.0001706]
[1735700453560,0.2326,94221.0,94220.0,0.0001706]
[1735700454670,0.444866,94221.0,94220.0,0.0001706]
[1735700455109,0.59272303,94221.0,94220.0,0.0001706]
[1735700455272,0.46372303,94221.0,94219.0,8e-07]
[1735700455498,0.547084,94220.0,94219.0,8e-07]
[1735700455692,0.2717,94220.0,94219.0,8e-07]
[1735700457331,0.2727,94220.0,94219.0,8e-07]
[1735700461100,0.36375703,94220.0,94219.0,8e-07]
[1735700462867,0.36275703,94220.0,94219.0,8e-07]
[1735700463014,0.36475703,94220.0,94219.0,8e-07]
[1735700463227,0.36775703,94220.0,94219.0,0.0010008]
[1735700463464,0.84073903,94220.0,94219.0,0.0010008]
[1735700463640,0.84073903,94220.0,94219.0,8e-07]
[1735700463641,0.83773903,94220.0,94219.0,8e-07]
[1735700463842,0.36775703,94220.0,94219.0,0.0010008]
[1735700464048,1.08417703,94220.0,94219.0,0.0010008]
[1735700465293,1.10717703,94220.0,94219.0,8e-07]
[1735700465436,0.39075703,94220.0,94219.0,8e-07]
[1735700466847,0.2997,94220.0,94219.0,8e-07]
[1735700467852,0.2997,94220.0,94219.0,0.0001714]
[1735700468194,0.2997853,94220.0,94219.0,0.0001714]
[1735700468599,1.1040153,94220.0,94219.0,0.0001714]
[1735700469650,1.0874183,94220.0,94219.0,0.0001714]
[1735700469876,1.19140462,94220.0,94219.0,0.0001714]
[1735700471145,1.13779062,94220.0,94219.0,4e-07]
[1735700471515,0.40377162,94220.0,94219.0,4e-07]
[1735700478762,0.50775794,94220.0,94219.0,4e-07]
[1735700483475,0.563082,94214.0,94213.0,1e-06]
[1735700483692,1.439137,94214.0,94213.0,1e-06]
[1735700483841,1.420975,94214.0,94213.0,1e-06]
[1735700484439,0.212365,94178.0,94173.0,0.08140092]
[1735700484637,0.1212365,94177.0,94174.0,0.10398632]
[1735700486898,0.1,94177.0,94174.0,0.10398632]
[1735700487435,0.1,94177.0,94174.0,0.10898632]
[1735700487848,0.1,94177.0,94174.0,0.11798632]
[1735700488042,0.1,94177.0,94174.0,0.10898632]
[1735700488263,0.1,94177.0,94174.0,0.10398632]
[1735700488507,0.1,94177.0,94174.0,0.11398632]
[1735700489247,0.2024721,94177.0,94174.0,0.11398632]
[1735700490168,0.1,94177.0,94174.0,0.11398632]
[1735700491312,0.212368,94176.0,94174.0,0.0101706]
[1735700492136,0.15,94175.0,94174.0,0.0031706]
[1735700493324,0.15,94175.0,94174.0,0.0001706]
[1735700493534,0.2434589,94175.0,94174.0,0.0001706]
[1735700494154,0.5186629,94175.0,94174.0,0.0001706]
[1735700494359,0.5196629,94175.0,94174.0,0.0001706]
[1735700494870,0.3222589,94175.0,94174.0,0.0001706]
[1735700495096,0.5708769,94175.0,94174.0,0.0001706]
[1735700496044,0.5768769,94175.0,94174.0,0.0001706]
[1735700496424,0.5758769,94175.0,94174.0,0.0001706]
[1735700496630,0.70286322,94175.0,94174.0,6e-07]
[1735700496808,0.45724522,94175.0,94174.0,6e-07]
[1735700498225,0.45724522,94175.0,94173.0,4e-07]
[1735700498437,1.96332705,94174.0,94173.0,4e-07]
[1735700498642,0.76742337,94174.0,94173.0,4e-07]
[1735700499405,0.66742337,94174.0,94173.0,4e-07]
[1735700499611,0.77342337,94174.0,94173.0,4e-07]
[1735700500857,0.77642337,94174.0,94173.0,4e-07]
[1735700501312,0.72735832,94174.0,94173.0,4e-07]
[1735700501519,0.623372,94174.0,94173.0,4e-07]
[1735700502102,0.62001098,94174.0,94173.0,4e-07]
[1735700503240,0.7239973,94174.0,94173.0,4e-07]
[1735700506317,0.1,94154.0,94153.0,0.0001706]
[1735700506519,1.671239,94154.0,94153.0,7.2e-07]
[1735700506720,0.614417,94154.0,94153.0,7.2e-07]
[1735700507558,0.614417,94154.0,94153.0,0.00100072]
[1735700507757,0.614417,94154.0,94153.0,0.00500072]
[1735700507959,0.65295463,94154.0,94153.0,7.2e-07]
[1735700508213,1.07768063,94154.0,94153.0,7.2e-07]
[1735700508426,0.63495463,94154.0,94153.0,7.2e-07]
[1735700508630,1.13495463,94154.0,94153.0,7.2e-07]
[1735700510590,1.096417,94154.0,94153.0,7.2e-07]
[1735700515513,1.096417,94154.0,94153.0,0.00017152]
[1735700516611,1.43579,94154.0,94153.0,0.00017152]
[1735700517692,1.401536,94154.0,94153.0,0.00017152]
[1735700518913,1.391413,94154.0,94153.0,0.00017152]
[1735700519142,1.49539932,94154.0,94153.0,0.00017152]
[1735700519830,1.20040332,94154.0,94153.0,0.00017152]
[1735700520097,1.49539932,94154.0,94153.0,0.00017152]
[1735700527719,1.49548472,94154.0,94153.0,0.00017152]
[1735700528437,0.8175024,94154.0,94153.0,0.00017152]
[1735700528653,0.7175024,94154.0,94153.0,0.15015784]
[1735700528861,0.7175024,94154.0,94153.0,0.23045784]
[1735700529485,0.8655024,94154.0,94153.0,0.23045784]
[1735700529627,0.8625024,94154.0,94153.0,0.23045784]
[1735700529833,0.8635024,94154.0,94153.0,0.23045784]
[1735700530246,0.96648872,94154.0,94153.0,0.23045784]
[1735700530785,0.96648872,94154.0,94153.0,0.23245784]
[1735700531506,0.96948872,94154.0,94153.0,0.23245784]
[1735700531709,0.96648872,94154.0,94153.0,0.23245784]
[1735700532120,0.96648872,94154.0,94153.0,0.23745784]
[1735700532324,0.96648872,94154.0,94153.0,0.00217152]
[1735700532500,0.96648872,94154.0,94153.0,0.00017152]
[1735700532718,0.96648872,94154.0,94153.0,0.00517152]
[1735700532923,0.96648872,94154.0,94153.0,0.00717152]
[1735700533444,0.96648872,94154.0,94153.0,0.00517152]
[1735700534074,0.96648872,94154.0,94153.0,0.00017152]
[1735700534306,0.96648872,94154.0,94153.0,0.00517152]
[1735700535196,0.96648872,94154.0,94153.0,0.00017152]
[1735700535608,0.96648872,94154.0,94153.0,0.00217152]
[1735700540169,0.8625024,94154.0,94153.0,0.00217152]
[1735700541970,0.57225032,94154.0,94153.0,0.00217152]
[1735700542658,0.78466732,94154.0,94153.0,0.00217152]
[1735700543041,0.86250232,94154.0,94153.0,0.00217152]
[1735700547213,0.94130232,94154.0,94153.0,0.00217152]
[1735700547421,1.04528864,94154.0,94153.0,0.00217152]
[1735700548247,1.04528864,94154.0,94153.0,0.00017152]
[1735700548666,1.04728864,94154.0,94153.0,0.00017152]
[1735700549008,1.04828864,94154.0,94153.0,0.00017152]
[1735700549614,1.04728864,94154.0,94153.0,0.00017152]
[1735700550002,1.04528864,94154.0,94153.0,0.00017152]
[1735700550200,0.94230232,94154.0,94153.0,0.00017152]
[1735700550436,0.94430232,94154.0,94153.0,0.00017152]
[1735700555162,1.07184232,94154.0,94153.0,0.00017152]
[1735700556558,1.07084232,94154.0,94153.0,0.00017152]
[1735700556960,1.06984232,94154.0,94153.0,0.00017152]
[1735700557166,1.17382864,94154.0,94153.0,0.00017152]
[1735700557343,1.17582864,94154.0,94153.0,0.00017152]
[1735700557544,1.17382864,94154.0,94153.0,0.00017152]
[1735700557982,1.07684232,94154.0,94153.0,0.00117152]
[1735700558324,1.06984232,94154.0,94153.0,0.00017152]
[1735700558548,1.07684232,94154.0,94153.0,0.00117152]
[1735700558886,1.07584232,94154.0,94153.0,0.00117152]
[1735700559241,1.07684232,94154.0,94153.0,0.00117152]
[1735700559445,1.18082864,94154.0,94153.0,0.00117152]
[1735700559643,1.17982864,94154.0,94153.0,0.00117152]
[1735700560057,1.18282864,94154.0,94153.0,0.00117152]
[1735700560258,1.18282864,94154.0,94153.0,0.00017152]
[1735700560455,1.17582864,94154.0,94153.0,0.00017152]
[1735700560670,1.18182864,94154.0,94153.0,0.00117152]
[1735700561032,1.20482864,94154.0,94153.0,0.00117152]
[1735700561405,1.20182864,94154.0,94153.0,0.00117152]
[1735700561809,1.20482864,94154.0,94153.0,0.00117152]
[1735700562016,1.30881496,94154.0,94153.0,5.2e-07]
[1735700562219,1.18127496,94154.0,94153.0,5.2e-07]
[1735700564331,1.18127496,94154.0,94153.0,1.2e-07]
[1735700566698,0.68127504,94154.0,94153.0,1.2e-07]
[1735700569465,0.78127504,94154.0,94153.0,1.2e-07]
[1735700570755,0.77827504,94154.0,94153.0,1.2e-07]
[1735700570976,0.77227504,94154.0,94153.0,1.2e-07]
[1735700571178,0.77727504,94154.0,94153.0,1.2e-07]
[1735700571381,0.78627504,94154.0,94153.0,1.2e-07]
[1735700571943,0.78127504,94154.0,94153.0,1.2e-07]
[1735700572142,0.78627504,94154.0,94153.0,1.2e-07]
[1735700574611,0.83317504,94154.0,94153.0,1.2e-07]
[1735700575448,0.83317504,94154.0,94153.0,7.2e-07]
[1735700584769,0.50928872,94154.0,94153.0,7.2e-07]
[1735700584987,0.2265024,94154.0,94153.0,7.2e-07]
[1735700586185,0.3715024,94154.0,94153.0,7.2e-07]
[1735700586384,0.3675024,94154.0,94153.0,7.2e-07]
[1735700586749,0.4938024,94154.0,94153.0,7.2e-07]
[1735700586955,0.49136444,94154.0,94153.0,7.2e-07]
[1735700587190,0.49236444,94154.0,94153.0,7.2e-07]
[1735700587389,0.49436444,94154.0,94153.0,7.2e-07]
[1735700587551,0.48836444,94154.0,94153.0,7.2e-07]
[1735700587754,0.48736444,94154.0,94153.0,7.2e-07]
[1735700588012,0.49136444,94154.0,94153.0,7.2e-07]
[1735700588260,0.49336444,94154.0,94153.0,7.2e-07]
[1735700588419,0.48936444,94154.0,94153.0,7.2e-07]
[1735700589497,0.48736444,94154.0,94153.0,7.2e-07]
[1735700589695,0.48836444,94154.0,94153.0,7.2e-07]
[1735700590055,0.49236444,94154.0,94153.0,7.2e-07]
[1735700590510,0.48836444,94154.0,94153.0,7.2e-07]
[1735700591018,0.49236444,94154.0,94153.0,7.2e-07]
[1735700593017,0.3905024,94154.0,94153.0,7.2e-07]
[1735700594656,0.3675024,94154.0,94153.0,7.2e-07]
[1735700596035,0.3635024,94154.0,94153.0,7.2e-07]
[1735700596209,0.3625024,94154.0,94153.0,7.2e-07]
[1735700596382,0.3645024,94154.0,94153.0,7.2e-07]
[1735700596732,0.3635024,94154.0,94153.0,7.2e-07]
[1735700596972,0.45443444,94154.0,94153.0,7.2e-07]
[1735700597123,0.45343444,94154.0,94153.0,7.2e-07]
[1735700597319,0.45443444,94154.0,94153.0,7.2e-07]
[1735700597526,0.45643444,94154.0,94153.0,7.2e-07]
[1735700598045,0.45543444,94154.0,94153.0,7.2e-07]
[1735700598290,0.45643444,94154.0,94153.0,7.2e-07]
[1735700599170,0.45633175,94154.0,94153.0,7.2e-07]
[1735700599928,0.45133175,94154.0,94153.0,7.2e-07]
[1735700600245,0.45433175,94154.0,94153.0,7.2e-07]
[1735700601085,0.45333175,94154.0,94153.0,7.2e-07]
[1735700601498,0.45433175,94154.0,94153.0,7.2e-07]
[1735700602151,0.36539971,94154.0,94153.0,7.2e-07]
[1735700602828,0.36439971,94154.0,94153.0,7.2e-07]
[1735700603009,0.36539971,94154.0,94153.0,7.2e-07]
[1735700609896,0.36548501,94154.0,94153.0,7.2e-07]
[1735700613929,0.38848501,94154.0,94153.0,7.2e-07]
[1735700614099,0.49247133,94154.0,94153.0,7.2e-07]
[1735700615942,0.38848501,94154.0,94153.0,7.2e-07]
[1735700616561,0.38648501,94154.0,94153.0,7.2e-07]
[1735700616735,0.39448501,94154.0,94153.0,7.2e-07]
[1735700617179,0.38948501,94154.0,94153.0,7.2e-07]
[1735700617600,0.39448501,94154.0,94153.0,7.2e-07]
[1735700618960,0.39848501,94154.0,94153.0,7.2e-07]
[1735700620637,0.36246,94135.0,94134.0,0.0805706]
[1735700620854,0.36296278,94135.0,94134.0,0.0805706]
[1735700622283,0.36296278,94135.0,94134.0,0.0815706]
[1735700622488,0.21296278,94135.0,94134.0,0.19849505]
[1735700622690,0.71296278,94135.0,94134.0,0.18555692]
[1735700623514,0.71296278,94135.0,94134.0,0.18655692]
[1735700623719,0.71296278,94135.0,94134.0,0.18555692]
[1735700624142,0.71396278,94135.0,94134.0,0.18555692]
[1735700624347,0.71396278,94135.0,94134.0,0.18455692]
[1735700624550,0.71496278,94135.0,94134.0,0.18555692]
[1735700624961,0.71296278,94135.0,94134.0,0.18455692]
[1735700625708,0.71296278,94135.0,94134.0,0.18755692]
[1735700626365,0.71396278,94135.0,94134.0,0.18755692]
[1735700626657,0.71396278,94135.0,94134.0,0.19055692]
[1735700629247,0.71396278,94135.0,94134.0,0.18755692]
[1735700629429,0.71296278,94135.0,94134.0,0.18455692]
[1735700629642,0.71296278,94135.0,94134.0,0.18755692]
[1735700629846,0.71396278,94135.0,94134.0,0.19055692]
[1735700634570,0.21396278,94135.0,94134.0,0.19055692]
[1735700638178,0.21296278,94135.0,94134.0,0.18755692]
[1735700638551,0.21296278,94135.0,94134.0,0.18455692]
[1735700638759,0.21296278,94135.0,94134.0,0.18755692]
[1735700639496,0.21296278,94135.0,94134.0,0.19055692]
[1735700639497,0.21396278,94135.0,94134.0,0.19055692]
[1735700649377,0.21396278,94135.0,94134.0,0.11015692]
[1735700652851,0.27784956,94135.0,94134.0,0.11015692]
[1735700653610,0.21396278,94135.0,94134.0,0.11015692]
[1735700654164,0.21396278,94135.0,94134.0,0.10715692]
[1735700654369,0.21296278,94135.0,94134.0,0.10415692]
[1735700654572,0.21396278,94135.0,94134.0,0.11015692]
[1735700654984,0.21396278,94135.0,94134.0,0.10715692]
[1735700655278,0.21396278,94135.0,94134.0,0.11015692]
[1735700656303,0.21296278,94135.0,94134.0,0.10715692]
[1735700656731,0.21396278,94135.0,94134.0,0.11015692]
[1735700658224,0.21396278,94135.0,94134.0,0.10715692]
[1735700658377,0.21396278,94135.0,94134.0,0.11015692]
[1735700658931,0.21396278,94135.0,94134.0,0.10715692]
[1735700659381,0.21296278,94135.0,94134.0,0.10415692]
[1735700659581,0.21396278,94135.0,94134.0,0.10715692]
[1735700659986,0.21396278,94135.0,94134.0,0.10415692]
[1735700660212,0.00250278,94135.0,94134.0,0.30389368]
[1735700660413,0.00250278,94135.0,94134.0,0.30689368]
[1735700660815,0.00250278,94135.0,94134.0,0.30389368]
[1735700661193,0.00250278,94135.0,94134.0,0.30689368]
[1735700661605,0.00250278,94135.0,94134.0,0.30389368]
[1735700662359,0.00050278,94135.0,94134.0,0.30089368]
[1735700662565,0.00150278,94135.0,94134.0,0.30689368]
[1735700662701,0.00250278,94135.0,94134.0,0.31489368]
[1735700664129,0.00250278,94135.0,94134.0,0.29445692]
[1735700667330,0.212436,94146.0,94134.0,0.29445692]
[1735700667508,0.15,94148.0,94135.0,0.10398632]
[1735700667720,0.212458,94137.0,94135.0,0.10398632]
[1735700668070,0.212432,94148.0,94140.0,0.1]
[1735700668272,0.212447,94141.0,94140.0,0.1]
[1735700668551,0.212447,94141.0,94140.0,0.20398632]
[1735700669635,0.213447,94141.0,94140.0,0.21298632]
[1735700669838,0.213447,94141.0,94140.0,0.24509923]
[1735700670198,0.213447,94141.0,94140.0,0.24709923]
[1735700670695,0.213447,94141.0,94140.0,0.24509923]
[1735700671096,0.213447,94141.0,94140.0,0.24909923]
[1735700671736,0.213447,94141.0,94140.0,0.21698632]
[1735700678612,0.001,94141.0,94140.0,0.21715692]
[1735700682083,0.20521064,94143.0,94140.0,0.21715692]
[1735700682286,0.20521064,94143.0,94141.0,0.10398632]
[1735700683407,0.20621064,94143.0,94141.0,0.10398632]
[1735700683641,0.20621064,94143.0,94141.0,0.1323641]
[1735700683829,0.20721064,94143.0,94141.0,0.1403641]
[1735700684072,0.20721064,94143.0,94141.0,0.1433641]
[1735700686475,0.20721064,94143.0,94141.0,0.11498632]
[1735700688511,0.0781,94142.0,94141.0,0.11498632]
[1735700688777,0.1235,94142.0,94141.0,0.11498632]
[1735700689364,0.1235,94142.0,94141.0,0.11198632]
[1735700689621,0.1235,94142.0,94141.0,0.10398632]
[1735700689805,0.1235,94142.0,94141.0,0.10798632]
[1735700690087,0.1245,94142.0,94141.0,0.11598632]
[1735700691250,0.1235,94142.0,94141.0,0.10798632]
[1735700691669,0.1235,94142.0,94141.0,0.10815692]
[1735700692308,0.1235,94142.0,94141.0,0.10415692]
[1735700692516,0.1235,94142.0,94141.0,0.12679696]
[1735700692723,0.1235,94142.0,94141.0,0.12879696]
[1735700693084,0.1235,94142.0,94141.0,0.11015692]
[1735700693637,0.1235,94142.0,94141.0,0.10815692]
[1735700693806,0.1235,94142.0,94141.0,0.10415692]
[1735700694424,0.1235,94142.0,94141.0,0.10615692]
[1735700694656,0.1235,94142.0,94141.0,0.11115692]
[1735700697104,0.20521064,94143.0,94141.0,0.13232176]
[1735700697859,0.20521064,94143.0,94141.0,0.12732176]
[1735700698799,0.20521064,94143.0,94141.0,0.12532176]
[1735700699167,0.20521064,94143.0,94141.0,0.12732176]
[1735700699839,0.20521064,94143.0,94141.0,0.13132176]
[1735700700399,0.20521064,94143.0,94142.0,0.11314924]
[1735700700604,0.20521064,94143.0,94142.0,0.21713556]
[1735700701206,0.20521064,94143.0,94142.0,0.20398632]
[1735700702021,0.20521064,94143.0,94142.0,0.20498632]
[1735700702650,0.20521064,94143.0,94142.0,0.20398632]
[1735700702851,0.20521064,94143.0,94142.0,0.20698632]
[1735700703070,0.20621064,94143.0,94142.0,0.21398632]
[1735700703671,0.20629594,94143.0,94142.0,0.21398632]
[1735700708373,0.20629594,94143.0,94142.0,0.01]
[1735700708374,0.28379594,94143.0,94142.0,0.01]
[1735700708549,0.33239594,94143.0,94142.0,0.01]
[1735700710051,0.25389594,94143.0,94141.0,0.0001706]
[1735700710271,0.0775,94142.0,94141.0,0.0001706]
[1735700711202,0.2275,94142.0,94141.0,0.0001706]
[1735700712115,0.2275,94142.0,94141.0,0.0011706]
[1735700712843,0.2275,94142.0,94141.0,0.0051706]
[1735700717918,0.15,94142.0,94141.0,0.11972313]
[1735700718433,0.15,94142.0,94141.0,0.10915692]
[1735700721230,0.15,94142.0,94141.0,0.0051706]
[1735700723523,0.20529594,94143.0,94141.0,0.20915692]
[1735700723750,0.20529594,94143.0,94142.0,0.10398632]
[1735700724586,0.20529594,94143.0,94142.0,0.20398632]
[1735700726001,0.20529594,94143.0,94142.0,0.20498632]
[1735700726204,0.20529594,94143.0,94142.0,0.20798632]
[1735700726681,0.20529594,94143.0,94142.0,0.20698632]
[1735700727277,0.20529594,94143.0,94142.0,0.20398632]
[1735700727483,0.20529594,94143.0,94142.0,0.20698632]
[1735700727696,0.20529594,94143.0,94142.0,0.20398632]
[1735700728135,0.20529594,94143.0,94142.0,0.20498632]
[1735700728705,0.20529594,94143.0,94142.0,0.20398632]
[1735700728900,0.20529594,94143.0,94142.0,0.20498632]
[1735700729308,0.20529594,94143.0,94142.0,0.20698632]
[1735700729506,0.20529594,94143.0,94142.0,0.20398632]
[1735700729767,8.53e-05,94143.0,94142.0,0.22641907]
[1735700729937,0.0010853,94143.0,94142.0,0.23341907]
[1735700730670,0.0010853,94143.0,94142.0,0.22641907]
[1735700730671,8.53e-05,94143.0,94142.0,0.22641907]
[1735700731039,0.0010853,94143.0,94142.0,0.23341907]
[1735700731440,0.0010853,94143.0,94142.0,0.23641907]
[1735700731838,0.0010853,94143.0,94142.0,0.23341907]
[1735700732304,0.0010853,94143.0,94142.0,0.23741907]
[1735700733332,0.0010853,94143.0,94142.0,0.21698632]
[1735700733479,0.01410826,94143.0,94142.0,0.21698632]
[1735700735583,0.212438,94145.0,94142.0,0.11698632]
[1735700735722,0.0108664,94143.0,94142.0,0.10398632]
[1735700736140,0.0108664,94143.0,94142.0,0.10798632]
[1735700736603,0.0118664,94143.0,94142.0,0.11698632]
[1735700736915,0.0108664,94143.0,94142.0,0.10798632]
[1735700737312,0.0118664,94143.0,94142.0,0.11298632]
[1735700737715,0.0118664,94143.0,94142.0,0.11598632]
[1735700739166,0.0118664,94143.0,94142.0,0.21598632]
[1735700739589,0.0118664,94143.0,94142.0,0.21615692]
[1735700739763,0.0119517,94143.0,94142.0,0.21615692]
[1735700742114,0.01189859,94143.0,94142.0,0.21615692]
[1735700742515,0.01189859,94143.0,94142.0,0.23780673]
[1735700744805,0.0010853,94143.0,94142.0,0.23780673]
[1735700745019,0.01193923,94143.0,94142.0,0.23780673]
[1735700750736,0.01193923,94143.0,94142.0,0.21615692]
[1735700760182,0.0010853,94143.0,94142.0,0.21615692]
[1735700760695,0.00209729,94143.0,94142.0,0.21615692]
[1735700763455,0.05169729,94143.0,94142.0,0.11615692]
[1735700764325,0.34647422,94143.0,94142.0,0.0121706]
[1735700764524,0.56439822,94143.0,94142.0,0.0121706]
[1735700764844,0.56439822,94143.0,94142.0,0.0091706]
[1735700765480,0.46897022,94143.0,94142.0,0.0091706]
[1735700765850,0.28089729,94143.0,94142.0,0.0091706]
[1735700766088,0.27989729,94143.0,94142.0,0.0001706]
[1735700766289,0.27989729,94143.0,94142.0,0.0031706]
[1735700766571,0.28089729,94143.0,94142.0,0.0031706]
[1735700766765,0.27989729,94143.0,94142.0,0.0001706]
[1735700767173,0.36337422,94143.0,94142.0,0.0001706]
[1735700769605,0.29273543,94143.0,94142.0,0.0001706]
[1735700770818,0.29173543,94143.0,94142.0,0.0001706]
[1735700771297,0.29273543,94143.0,94142.0,0.0001706]
[1735700771660,0.29173543,94143.0,94142.0,0.0001706]
[1735700772026,0.29273543,94143.0,94142.0,0.0001706]
[1735700772404,0.29073543,94143.0,94142.0,0.0001706]
[1735700772605,0.29173543,94143.0,94142.0,0.0001706]
[1735700774947,0.26716913,94143.0,94142.0,0.0001706]
[1735700775156,0.26790075,94143.0,94142.0,0.0001706]
[1735700775353,0.26798605,94143.0,94142.0,0.0001706]
[1735700776128,0.26698605,94143.0,94142.0,0.0001706]
[1735700776301,0.26798605,94143.0,94142.0,0.0001706]
[1735700776499,0.26698605,94143.0,94142.0,0.0001706]
[1735700776900,0.26798605,94143.0,94142.0,0.0001706]
[1735700778109,0.34727186,94143.0,94142.0,0.0001706]
[1735700781470,0.84727186,94143.0,94142.0,0.0001706]
[1735700782954,0.76798605,94143.0,94142.0,0.0001706]
[1735700783768,0.76782536,94143.0,94142.0,0.0001706]
[1735700801991,0.76762536,94143.0,94142.0,0.0001706]
[1735700802986,0.46801105,94143.0,94142.0,0.0001706]
[1735700804063,0.51064005,94143.0,94142.0,0.0001706]
[1735700806052,0.66064005,94143.0,94142.0,0.0001706]
[1735700809485,0.66264005,94143.0,94142.0,0.0001706]
[1735700810436,0.66064005,94143.0,94142.0,0.0001706]
[1735700810550,0.66164005,94143.0,94142.0,0.0001706]
[1735700810956,0.66172535,94143.0,94142.0,0.0001706]
[1735700812387,0.66372535,94143.0,94142.0,0.0001706]
[1735700817209,0.37424234,94143.0,94142.0,0.0001706]
[1735700818358,0.66372534,94143.0,94142.0,0.0001706]
[1735700826141,0.66072534,94143.0,94142.0,0.0001706]
[1735700826346,0.66172534,94143.0,94142.0,0.0001706]
[1735700826551,0.66372534,94143.0,94142.0,0.0001706]
[1735700828270,0.66072534,94143.0,94142.0,0.0001706]
[1735700828630,0.66172534,94143.0,94142.0,0.0001706]
[1735700828830,0.66072534,94143.0,94142.0,0.0001706]
[1735700829029,0.66172534,94143.0,94142.0,0.0001706]
[1735700829278,0.66172534,94143.0,94142.0,0.0011706]
[1735700829479,0.66072534,94143.0,94142.0,0.0011706]
[1735700829791,0.66172534,94143.0,94142.0,0.0001706]
[1735700829995,0.76471166,94143.0,94142.0,0.0001706]
[1735700830882,0.76571166,94143.0,94142.0,0.0001706]
[1735700831099,0.66172534,94143.0,94142.0,0.0001706]
[1735700831468,0.66272534,94143.0,94142.0,0.0001706]
[1735700831671,0.66172534,94143.0,94142.0,0.0001706]
[1735700832013,0.66272534,94143.0,94142.0,0.0001706]
[1735700832428,0.66172534,94143.0,94142.0,0.0001706]
[1735700832788,0.66272534,94143.0,94142.0,0.0001706]
[1735700833173,0.76671166,94143.0,94142.0,0.0001706]
[1735700834181,0.66272534,94143.0,94142.0,0.0001706]
[1735700835138,0.66172534,94143.0,94142.0,0.0001706]
[1735700835544,0.66372534,94143.0,94142.0,0.0001706]
[1735700835953,0.66472534,94143.0,94142.0,0.0001706]
[1735700836316,0.66372534,94143.0,94142.0,0.0001706]
[1735700836520,0.66172534,94143.0,94142.0,0.0001706]
[1735700838007,0.71062534,94143.0,94142.0,0.0001706]
[1735700841396,0.21062604,94143.0,94142.0,0.0001706]
[1735700841862,0.23362604,94143.0,94142.0,0.0001706]
[1735700842066,0.31592604,94143.0,94142.0,0.0001706]
[1735700842269,2.35747604,94143.0,94142.0,0.0001706]
[1735700842475,2.36493736,94143.0,94142.0,0.0001706]
[1735700842647,0.69125904,94143.0,94142.0,0.0001706]
[1735700842855,0.58997504,94143.0,94142.0,0.0001706]
[1735700843006,0.61297504,94143.0,94142.0,0.0001706]
[1735700843811,0.77904404,94143.0,94142.0,0.0001706]
[1735700844016,0.75481704,94143.0,94142.0,0.0001706]
[1735700844416,0.60471704,94143.0,94142.0,0.0001706]
[1735700844619,0.58251204,94143.0,94142.0,0.0001706]
[1735700844815,0.36583104,94143.0,94142.0,0.0001706]
[1735700845016,0.16472604,94143.0,94142.0,0.0001706]
[1735700845226,0.16072604,94143.0,94142.0,0.0001706]
[1735700845421,0.16672604,94143.0,94142.0,0.0001706]
[1735700845885,0.01134687,94143.0,94142.0,0.54060192]
[1735700846089,0.01134687,94143.0,94142.0,0.59469623]
[1735700846436,0.5,94145.0,94143.0,0.124]
[1735700846669,0.5,94145.0,94144.0,0.22798632]
[1735700846872,0.3719,94145.0,94144.0,0.64042632]
[1735700847083,8.53e-05,94153.0,94152.0,0.212422]
[1735700847283,8.53e-05,94153.0,94152.0,0.39340832]
[1735700847699,8.53e-05,94153.0,94152.0,0.39240832]
[1735700848103,0.2562,94168.0,94167.0,0.312388]
[1735700848307,8.54e-05,94174.0,94172.0,0.1]
[1735700848523,0.1,94208.0,94206.0,0.1]
[1735700848704,0.212283,94214.0,94207.0,0.20398632]
[1735700848906,0.424566,94214.0,94207.0,0.20398632]
[1735700849113,0.212283,94214.0,94208.0,0.1]
[1735700849329,0.212283,94214.0,94208.0,0.20398632]
[1735700849523,0.15,94213.0,94208.0,0.20398632]
[1735700850138,0.1500853,94209.0,94208.0,0.20398632]
[1735700850445,0.1500853,94209.0,94208.0,0.20698632]
[1735700851030,8.53e-05,94209.0,94208.0,0.20698632]
[1735700851666,0.0010853,94209.0,94208.0,0.21498632]
[1735700851807,8.53e-05,94209.0,94208.0,0.20398632]
[1735700852206,8.53e-05,94209.0,94208.0,0.21598632]
[1735700852391,0.0010853,94209.0,94208.0,0.21598632]
[1735700852608,0.0010853,94209.0,94208.0,0.21298632]
[1735700852980,0.0010853,94209.0,94208.0,0.21698632]
[1735700853393,0.0010853,94209.0,94208.0,0.21298632]
[1735700853626,0.06865123,94209.0,94208.0,0.009]